bitfinex/quotes_ETHUSD_20240709
["timestamp","ask_amount","ask_price","bid_price","bid_amount"]
[1720530260733,2.3989,3077.8,3077.1,2.74]
[1720530260892,2.3989,3077.8,3076.7,0.1142419]
[1720530261098,2.3989,3077.6,3076.7,0.1142419]
[1720530261419,5.3989,3077.6,3076.7,0.1142419]
[1720530261593,0.55,3077.5,3076.7,0.1142419]
[1720530261792,3.55,3077.5,3076.7,0.1142419]
[1720530262425,5.377,3077.2,3076.7,0.1142419]
[1720530262634,2.4705,3077.3,3076.7,0.1142419]
[1720530262635,2.4705,3077.0,3076.7,0.1142419]
[1720530263318,0.55,3076.9,3076.7,0.1142419]
[1720530263627,3.55,3076.9,3076.7,0.1142419]
[1720530264834,2.3099,3076.8,3076.7,0.1142419]
[1720530264994,5.8599,3076.8,3076.7,0.1142419]
[1720530265195,7.12226855,3076.8,3076.7,0.1142419]
[1720530266230,5.8599,3076.8,3076.7,0.1142419]
[1720530267212,5.3099,3076.8,3076.7,0.1142419]
[1720530267411,0.33978549,3076.9,3076.7,0.1142419]
[1720530267725,0.33978549,3076.9,3076.7,2.8542419]
[1720530267930,2.3564,3078.0,3076.7,2.8542419]
[1720530268144,0.55964,3077.9,3077.1,2.74]
[1720530268314,0.55964,3077.9,3076.7,2.8542419]
[1720530269597,0.55964,3077.9,3076.8,0.06499859]
[1720530269909,2.3564,3078.0,3077.1,2.74]
[1720530270537,2.3564,3078.0,3076.7,2.8542419]
[1720530271112,0.55,3077.9,3076.7,2.8542419]
[1720530271363,3.55,3077.9,3076.7,2.8542419]
[1720530271649,0.59064,3077.8,3076.7,2.8542419]
[1720530271864,0.55,3077.7,3076.7,2.8542419]
[1720530272438,2.436,3077.6,3076.7,0.1142419]
[1720530272648,0.55,3077.5,3076.7,0.1142419]
[1720530272847,0.5986,3077.4,3076.7,0.1142419]
[1720530273081,0.55,3077.3,3076.7,0.1142419]
[1720530273424,2.3015,3077.2,3076.7,0.1142419]
[1720530273631,5.3015,3077.2,3076.7,0.1142419]
[1720530273853,0.55,3077.1,3076.7,0.1142419]
[1720530274061,0.58515,3077.0,3076.7,0.1142419]
[1720530274370,0.55,3076.9,3076.7,0.1142419]
[1720530279290,2.4106,3076.8,3076.7,0.1142419]
[1720530279507,5.9606,3076.8,3076.7,0.1142419]
[1720530282207,11.3376,3076.8,3076.7,0.1142419]
[1720530282495,12.529875,3076.8,3076.7,0.1142419]
[1720530282991,12.86931427,3076.8,3076.7,0.1142419]
[1720530283220,10.91631427,3076.8,3076.7,0.1142419]
[1720530285512,10.97281427,3076.8,3076.7,0.1142419]
[1720530288745,20.44790227,3076.8,3076.7,0.1142419]
[1720530288951,3.424,3076.6,3074.9,3.66]
[1720530289239,9.2762,3076.5,3074.8,2.3202]
[1720530290033,3.424,3076.3,3074.8,2.3202]
[1720530290339,3.424,3076.1,3074.8,2.3202]
[1720530290634,3.55,3076.0,3074.8,2.3202]
[1720530291412,0.55,3076.0,3074.8,5.9802]
[1720530291748,0.55,3076.0,3074.9,0.06503867]
[1720530292042,1.13522,3076.0,3074.9,0.06503867]
[1720530292937,0.55,3076.0,3075.2,3.66]
[1720530293351,0.355,3076.4,3075.2,3.66]
[1720530293352,0.55,3076.3,3075.2,3.66]
[1720530293553,2.3259,3076.6,3075.3,2.3904]
[1720530293706,0.23259,3076.5,3075.3,2.3904]
[1720530294733,0.23259,3076.5,3075.6,2.746]
[1720530294938,0.55,3076.4,3075.6,2.746]
[1720530295514,2.34,3077.0,3075.6,2.746]
[1720530295812,3.11499215,3077.0,3075.6,2.746]
[1720530296660,3.0,3076.9,3075.6,2.746]
[1720530297088,0.55,3076.8,3075.6,2.746]
[1720530299021,2.4565,3076.7,3075.6,2.746]
[1720530299221,0.85065,3076.6,3075.6,2.746]
[1720530299597,3.85065,3076.6,3075.3,2.3904]
[1720530299896,3.85065,3076.6,3075.2,2.746]
[1720530301199,2.3546,3076.5,3075.2,2.746]
[1720530301353,1.512925,3076.4,3075.2,2.746]
[1720530301736,4.512925,3076.4,3075.2,2.746]
[1720530302969,1.512925,3076.4,3075.6,2.746]
[1720530303173,2.3327,3076.8,3075.6,2.746]
[1720530303375,2.3327,3076.8,3076.0,2.746]
[1720530304087,2.3327,3076.8,3075.6,2.746]
[1720530304860,0.55,3076.7,3075.6,2.746]
[1720530305070,3.55,3076.7,3076.0,2.746]
[1720530305294,2.2729,3077.1,3076.0,2.746]
[1720530305493,3.24119,3077.1,3075.7,2.4642]
[1720530305872,3.24119,3077.1,3076.0,2.746]
[1720530306218,6.66519,3077.1,3075.7,2.4642]
[1720530306429,2.412,3076.9,3075.6,2.746]
[1720530306779,2.412,3076.9,3075.1,6.25192]
[1720530306780,5.836,3076.8,3075.2,2.746]
[1720530306978,2.3202,3076.5,3075.2,2.746]
[1720530307308,2.3202,3076.3,3075.2,2.746]
[1720530307517,0.55,3076.2,3074.9,2.2651]
[1720530307678,3.55,3076.2,3074.9,2.2651]
[1720530309618,2.3169,3076.1,3074.8,2.746]
[1720530309825,1.13669,3076.0,3074.8,2.746]
[1720530310118,4.13669,3076.0,3074.8,2.746]
[1720530312085,2.3247,3075.9,3074.8,2.746]
[1720530312293,0.55,3075.8,3074.3,2.483]
[1720530312591,3.55,3075.8,3074.4,2.746]
[1720530312821,0.58747,3075.7,3074.8,2.746]
[1720530313026,0.55,3075.6,3074.8,2.746]
[1720530315728,3.8319,3075.4,3074.8,2.746]
[1720530316227,3.8319,3075.4,3074.4,2.746]
[1720530318691,3.8319,3075.4,3074.0,2.3849]
[1720530319037,3.424,3075.1,3073.6,0.1142419]
[1720530319188,2.3632,3074.7,3073.6,0.1142419]
[1720530319393,2.3632,3074.5,3073.6,0.1142419]
[1720530319636,1.21908408,3074.4,3073.6,0.1142419]
[1720530320144,4.21908408,3074.4,3073.6,0.1142419]
[1720530320716,0.55,3074.4,3073.8,2.746]
[1720530320994,0.55,3074.4,3074.2,2.746]
[1720530321209,0.55,3074.4,3074.2,2.696]
[1720530321799,2.3642,3075.2,3074.3,2.44234995]
[1720530321995,2.3031,3075.5,3074.7,2.746]
[1720530322234,2.2981,3075.4,3074.3,2.746]
[1720530323196,2.2971,3075.2,3073.9,2.746]
[1720530323602,0.55,3075.1,3073.9,2.746]
[1720530323906,0.55,3075.1,3074.0,2.2765]
[1720530324120,3.55,3075.1,3074.0,2.2765]
[1720530325527,3.55,3075.1,3073.9,2.746]
[1720530325726,0.58471,3075.0,3073.9,2.746]
[1720530326006,0.55,3074.9,3073.9,2.746]
[1720530326175,2.392,3074.8,3073.9,2.746]
[1720530326470,2.392,3074.8,3073.6,0.1142419]
[1720530326471,2.392,3074.6,3073.6,0.1142419]
[1720530326765,0.2942,3074.5,3073.6,0.1142419]
[1720530326965,0.8442,3074.5,3073.6,0.1142419]
[1720530327135,3.8442,3074.5,3073.6,0.1142419]
[1720530328367,3.55,3074.5,3073.9,2.746]
[1720530329635,3.0,3074.5,3073.9,2.746]
[1720530329853,5.4842,3074.9,3073.9,2.746]
[1720530330136,3.0,3074.9,3074.3,2.746]
[1720530330443,2.4842,3075.3,3074.3,2.746]
[1720530331067,2.4842,3075.3,3073.9,2.746]
[1720530331276,0.24842,3075.2,3073.9,2.746]
[1720530332078,0.55,3075.1,3073.9,2.746]
[1720530333081,2.321,3075.0,3073.9,2.746]
[1720530333284,0.55,3074.9,3073.6,0.1142419]
[1720530333461,2.321,3074.8,3073.6,0.1142419]
[1720530333647,0.55,3074.7,3073.6,0.1142419]
[1720530333977,3.55,3074.7,3073.6,0.1142419]
[1720530334165,0.5871,3074.6,3073.6,0.1142419]
[1720530334372,0.55,3074.5,3073.6,0.1142419]
[1720530335958,2.4742,3074.4,3073.6,0.1142419]
[1720530336179,0.55,3074.3,3073.6,0.1142419]
[1720530336579,3.55,3074.3,3073.6,0.1142419]
[1720530336780,0.60242,3074.2,3073.6,0.1142419]
[1720530336979,0.55,3074.1,3073.6,0.1142419]
[1720530346192,0.5871,3074.6,3073.9,2.746]
[1720530346516,2.2892,3074.8,3073.9,2.746]
[1720530347687,3.0,3074.6,3073.9,2.746]
[1720530348194,9.7991,3075.2,3074.0,2.327]
[1720530348504,2.3891,3075.2,3074.3,2.746]
[1720530350000,2.2749,3075.8,3074.3,2.81104703]
[1720530350177,2.2749,3075.8,3074.7,2.746]
[1720530351496,0.55,3075.7,3074.3,2.746]
[1720530351707,2.51529,3075.7,3074.3,2.746]
[1720530351882,2.2878,3075.5,3074.3,2.746]
[1720530352085,1.13378,3075.4,3074.3,2.746]
[1720530352478,2.4505,3075.3,3073.9,5.0138]
[1720530352776,0.55,3075.2,3073.9,2.746]
[1720530353193,3.55,3075.2,3073.9,2.746]
[1720530353413,2.4735,3075.1,3073.9,2.746]
[1720530353579,1.15235,3075.0,3073.9,2.746]
[1720530353775,4.15235,3075.0,3073.9,2.746]
[1720530355875,2.4115,3074.9,3073.9,2.746]
[1720530356079,0.55,3074.8,3073.9,2.746]
[1720530356276,3.55,3074.8,3073.9,2.746]
[1720530356510,2.332,3074.6,3073.9,2.746]
[1720530356706,0.55,3074.5,3073.9,2.746]
[1720530357091,0.55,3074.6,3073.9,2.746]
[1720530357487,3.0,3074.8,3073.9,2.746]
[1720530357488,0.55,3074.7,3073.9,2.746]
[1720530358120,0.55,3074.7,3074.0,2.3202]
[1720530358997,0.55,3074.7,3074.3,2.746]
[1720530359401,0.55,3075.0,3074.3,2.746]
[1720530359587,1.591,3075.0,3074.3,2.746]
[1720530360317,0.55,3075.0,3074.3,2.746]
[1720530360544,3.0,3075.2,3074.3,2.746]
[1720530360686,2.264,3075.3,3074.3,2.746]
[1720530360687,5.264,3075.3,3074.3,2.746]
[1720530361039,0.90338067,3075.2,3074.3,2.746]
[1720530361186,0.90338067,3075.2,3074.0,2.3202]
[1720530361187,0.61673807,3075.1,3074.0,2.3202]
[1720530361387,1.51999395,3075.1,3074.0,2.3202]
[1720530361985,0.55,3075.0,3074.4,2.746]
[1720530362184,3.0,3075.2,3074.5,2.2987]
[1720530362422,3.22749,3075.7,3074.5,2.2987]
[1720530362621,0.9031463,3075.6,3074.5,2.2987]
[1720530363002,0.9031463,3075.6,3074.4,2.746]
[1720530363204,0.9031463,3075.6,3073.6,3.3677219]
[1720530363205,2.4045,3075.4,3073.6,3.3677219]
[1720530363441,0.90275862,3075.3,3074.0,3.25298]
[1720530363592,3.90275862,3075.3,3074.1,5.66028]
[1720530363794,0.93072586,3075.2,3074.1,5.66028]
[1720530364117,2.4161,3075.0,3073.9,2.746]
[1720530364432,0.55,3074.9,3073.9,2.746]
[1720530366303,1.45239713,3074.9,3073.9,2.746]
[1720530367001,0.55,3074.9,3073.9,2.746]
[1720530367202,1.45263816,3074.9,3073.9,2.746]
[1720530367431,0.38687382,3074.8,3073.9,2.746]
[1720530367623,0.55,3074.7,3073.9,2.746]
[1720530369635,0.55,3074.7,3073.6,0.1142419]
[1720530370537,2.3352,3074.6,3073.6,0.1142419]
[1720530370736,0.55,3074.5,3073.6,0.1142419]
[1720530370934,0.28852,3074.4,3073.6,0.1142419]
[1720530371242,0.55,3074.3,3073.6,0.1142419]
[1720530371444,0.55,3074.5,3073.6,0.1142419]
[1720530371608,0.55,3074.5,3073.9,2.746]
[1720530372543,3.0,3074.9,3074.0,2.3314]
[1720530372746,9.7452,3075.2,3074.3,2.746]
[1720530372747,3.0,3075.1,3074.3,2.746]
[1720530372946,3.97452,3075.1,3074.3,2.746]
[1720530373117,9.7452,3075.2,3074.3,2.746]
[1720530373312,3.25,3076.2,3074.7,2.746]
[1720530373313,2.3352,3075.6,3074.7,2.746]
[1720530373515,7.41,3076.1,3075.1,2.746]
[1720530373731,4.6162,3076.0,3075.1,2.746]
[1720530373935,2.3352,3076.0,3075.1,5.99791]
[1720530374249,7.41,3076.1,3075.1,2.746]
[1720530374734,7.41,3076.1,3074.2,3.25278]
[1720530374735,2.2876,3075.8,3074.3,5.1897]
[1720530374946,9.363,3076.1,3074.3,2.746]
[1720530374947,2.2876,3075.6,3074.3,2.746]
[1720530375136,0.90305568,3075.5,3074.3,2.746]
[1720530375347,2.2876,3075.6,3074.3,2.746]
[1720530375672,1.45310803,3075.5,3074.3,2.746]
[1720530375836,0.3740708,3075.4,3074.3,2.746]
[1720530376036,0.55,3075.3,3074.3,2.746]
[1720530376956,2.4034,3075.2,3073.9,2.746]
[1720530377162,2.4431,3075.0,3073.6,2.3810419]
[1720530377376,1.63494458,3074.9,3073.6,0.1142419]
[1720530377515,0.55,3074.8,3073.6,0.1142419]
[1720530377720,1.45294053,3074.8,3073.6,0.1142419]
[1720530378151,4.45294053,3074.8,3073.6,0.1142419]
[1720530378333,2.465,3074.6,3073.6,0.1142419]
[1720530378675,1.45267981,3074.5,3073.6,0.1142419]
[1720530378884,3.55,3074.5,3073.6,0.1142419]
[1720530380922,2.2661,3074.4,3073.6,0.1142419]
[1720530381136,0.55,3074.3,3073.6,0.1142419]
[1720530381355,2.4383,3074.1,3073.6,0.1142419]
[1720530381566,0.55,3074.0,3073.6,0.1142419]
[1720530382183,3.55,3074.0,3073.6,0.1142419]
[1720530382997,2.4383,3073.9,3073.6,0.1142419]
[1720530383165,0.55,3073.8,3073.6,0.1142419]
[1720530383349,0.59883,3073.7,3073.6,0.1142419]
[1720530383549,1.14883,3073.7,3073.6,0.1142419]
[1720530388192,3.0,3073.8,3073.6,0.1142419]
[1720530388513,0.58161,3074.2,3073.6,0.1142419]
[1720530388514,3.58161,3074.2,3073.6,0.1142419]
[1720530388816,1.341721,3074.1,3073.6,0.1142419]
[1720530389793,0.55,3074.0,3073.6,0.1142419]
[1720530394515,2.4378,3073.9,3073.6,0.1142419]
[1720530394681,0.55,3073.8,3073.6,0.1142419]
[1720530395088,3.55,3073.8,3073.6,0.1142419]
[1720530395323,0.59878,3073.7,3073.6,0.1142419]
[1720530395627,1.14878,3073.7,3073.6,0.1142419]
[1720530398263,2.2868,3073.6,3072.0,2.4359]
[1720530398533,2.2868,3073.4,3072.0,2.4359]
[1720530398824,4.32617209,3073.5,3072.0,2.4359]
[1720530398825,3.55,3073.6,3072.0,2.4359]
[1720530399122,0.55,3073.6,3072.2,2.4359]
[1720530399431,12.74,3074.3,3072.5,2.4359]
[1720530399432,12.9468,3074.3,3072.5,2.4359]
[1720530399630,0.58161,3074.2,3072.6,2.4359]
[1720530400022,0.58161,3074.2,3072.7,2.3914]
[1720530400219,12.9468,3074.3,3072.7,2.3914]
[1720530400220,5.5368,3074.3,3072.8,3.25432]
[1720530400421,9.8305,3074.7,3073.2,3.25391]
[1720530400624,7.41,3074.7,3073.3,2.4793]
[1720530400927,7.41,3074.7,3073.5,6.00661]
[1720530401134,2.2822,3075.1,3073.5,6.00661]
[1720530401333,0.22822,3075.0,3073.5,2.753]
[1720530401555,0.22822,3075.0,3073.3,2.4793]
[1720530401724,2.98122,3075.0,3073.3,2.4793]
[1720530402055,3.424,3074.9,3073.3,2.4793]
[1720530402217,0.640522,3074.8,3073.3,2.4793]
[1720530402419,3.640522,3074.8,3073.3,2.4793]
[1720530402620,3.0,3074.7,3073.3,5.73305]
[1720530402843,0.640522,3074.8,3073.5,3.25359]
[1720530403167,0.640522,3074.8,3073.6,2.2784]
[1720530403324,0.22822,3075.0,3073.6,2.2784]
[1720530405021,0.55,3074.9,3073.6,2.2784]
[1720530405227,2.4768,3075.5,3073.9,2.3942]
[1720530405434,12.15,3075.6,3074.0,0.06504875]
[1720530405625,12.15,3075.6,3074.1,5.66377]
[1720530405949,12.15,3075.6,3074.1,5.72881286]
[1720530406153,12.15,3075.6,3074.1,5.66377]
[1720530406555,8.151,3075.2,3074.1,2.4108]
[1720530406956,0.55,3075.1,3074.1,2.4108]
[1720530407528,3.0286,3075.1,3074.1,2.4108]
[1720530407732,0.55,3075.1,3074.1,2.4108]
[1720530407976,3.55,3075.1,3074.1,2.4108]
[1720530408174,1.1701,3075.0,3074.1,2.4108]
[1720530408478,0.55,3074.9,3074.1,2.4108]
[1720530411566,0.55,3075.0,3074.1,2.4108]
[1720530412074,0.55,3075.0,3074.2,0.06504858]
[1720530412239,0.55,3075.1,3074.3,2.4722]
[1720530412438,0.55,3075.1,3074.4,0.06504284]
[1720530412635,7.41,3075.2,3074.3,2.53724281]
[1720530412935,7.41,3075.2,3074.3,2.4722]
[1720530413153,7.41,3075.2,3074.3,2.53724288]
[1720530413342,7.41,3075.7,3074.3,2.53724288]
[1720530413544,0.98833,3075.7,3074.6,2.309]
[1720530413764,7.41,3076.2,3074.8,2.309]
[1720530413965,7.41,3076.2,3074.8,2.37403502]
[1720530414384,7.41,3076.2,3074.8,2.309]
[1720530415304,3.0,3076.1,3074.8,2.309]
[1720530415500,1.041,3076.0,3074.8,2.309]
[1720530415951,0.55,3075.9,3074.8,2.309]
[1720530419343,2.3908,3075.8,3073.8,5.5062]
[1720530419547,0.55,3075.7,3073.8,2.253]
[1720530419768,1.14408,3075.7,3073.8,5.50623]
[1720530419952,1.14408,3075.7,3073.8,2.253]
[1720530420162,7.56808,3075.7,3073.8,2.253]
[1720530420362,3.424,3075.5,3073.8,2.253]
[1720530420568,2.3171,3075.3,3073.8,2.253]
[1720530420764,0.55,3075.2,3073.8,2.253]
[1720530421081,3.55,3075.2,3073.8,2.253]
[1720530422485,3.424,3075.1,3073.8,2.253]
[1720530422695,3.424,3075.1,3073.0,2.3882]
[1720530422696,1.2474,3075.0,3073.0,2.3882]
[1720530422892,4.2474,3075.0,3073.0,2.3882]
[1720530423805,3.0,3074.9,3073.1,3.25402]
[1720530424003,0.55,3074.8,3073.2,3.0]
[1720530424694,0.55,3074.8,3073.4,2.3211]
[1720530424994,2.3936,3074.7,3072.8,2.3211]
[1720530425181,0.84436,3074.6,3072.8,2.3211]
[1720530425382,3.84436,3074.6,3072.8,2.3211]
[1720530425783,2.4573,3074.5,3072.8,2.3211]
[1720530426093,3.974,3074.4,3072.4,2.4278]
[1720530426328,4.604166,3074.4,3072.4,2.4278]
[1720530426462,3.0,3074.3,3072.4,5.68258]
[1720530426669,0.55,3074.2,3072.4,5.68258]
[1720530427017,0.355,3074.1,3072.4,2.49287829]
[1720530427214,0.55,3074.0,3072.4,2.49287829]
[1720530427702,3.630166,3074.4,3073.1,3.667]
[1720530427862,7.41,3074.9,3073.3,2.25]
[1720530428062,7.41,3074.9,3073.4,3.31869025]
[1720530428263,7.41,3074.9,3073.5,3.25355]
[1720530428699,7.41,3074.9,3073.6,0.06505284]
[1720530428900,7.41,3074.9,3073.6,3.31855284]
[1720530429085,7.41,3074.9,3073.4,0.06505285]
[1720530429286,7.41,3074.9,3073.3,8.75751]
[1720530429287,0.741,3074.8,3073.3,2.25]
[1720530429497,3.741,3074.8,3073.3,2.25]
[1720530429663,3.741,3074.8,3073.4,0.0650602]
[1720530429863,0.55,3074.7,3073.4,0.0650602]
[1720530430293,0.55,3074.7,3073.3,5.50381]
[1720530430629,0.55,3074.7,3073.4,0.06506027]
[1720530430952,1.7201,3074.7,3073.4,0.06506027]
[1720530431241,1.7201,3074.7,3073.3,2.25]
[1720530431397,2.4262,3074.6,3072.7,5.9591]
[1720530431603,0.55,3074.5,3072.7,5.54651]
[1720530431927,3.55,3074.5,3072.8,3.25433]
[1720530432145,3.55,3074.5,3072.9,0.06506876]
[1720530432288,0.652231,3074.4,3072.9,3.25424]
[1720530432491,0.55,3074.3,3072.9,3.25424]
[1720530433191,0.55,3074.3,3073.3,2.4327]
[1720530433535,3.0,3074.5,3073.4,0.06506001]
[1720530433712,3.0,3074.8,3073.5,3.25355]
[1720530434032,3.98852,3074.8,3073.6,0.06505383]
[1720530434641,3.98852,3074.8,3073.3,5.68651]
[1720530434925,3.98852,3074.8,3073.3,2.4327]
[1720530435130,0.55,3074.7,3073.3,2.4327]
[1720530435314,0.55,3074.7,3072.9,3.25418]
[1720530435315,2.4052,3074.5,3072.9,2.4491]
[1720530435486,0.55,3074.4,3072.9,5.70333]
[1720530435687,3.55,3074.4,3072.9,5.70333]
[1720530435993,0.89552,3074.3,3072.9,5.70333]
[1720530436192,0.55,3074.2,3072.9,5.70333]
[1720530437103,0.55,3074.3,3073.3,3.25382]
[1720530437434,0.55,3074.3,3073.1,3.667]
[1720530437643,0.55,3074.3,3073.0,6.50821]
[1720530437814,0.55,3074.5,3073.1,3.31909908]
[1720530438025,0.55,3074.5,3072.9,2.4491]
[1720530438227,0.55,3074.5,3072.9,5.4491]
[1720530438387,0.55,3074.5,3072.9,8.70335]
[1720530438591,0.55,3074.5,3072.9,5.4491]
[1720530438787,2.4039,3074.4,3072.9,2.4491]
[1720530439091,0.84539,3074.3,3072.5,2.2559]
[1720530439285,3.84539,3074.3,3072.5,2.2559]
[1720530439545,2.3284,3074.2,3072.5,2.2559]
[1720530439844,0.55,3074.1,3072.5,2.2559]
[1720530440056,2.371,3073.9,3072.0,6.0486]
[1720530440210,2.371,3073.9,3071.8,3.26036]
[1720530440211,5.795,3073.6,3071.8,0.005]
[1720530440564,0.34045552,3072.5,3071.8,0.005]
[1720530440841,0.55,3072.4,3071.8,0.005]
[1720530441593,0.55,3072.4,3071.8,0.07009575]
[1720530441830,0.34045552,3072.5,3071.8,0.07009575]
[1720530442312,0.34045552,3072.5,3071.8,0.005]
[1720530442691,0.34045552,3072.5,3071.8,3.32549748]
[1720530442932,0.34045552,3072.5,3071.8,0.07008748]
[1720530443223,0.34045552,3072.5,3071.8,0.005]
[1720530444132,0.55,3072.4,3071.8,0.005]
[1720530444931,2.8101,3072.4,3071.8,0.005]
[1720530445146,3.31505555,3072.3,3071.8,0.005]
[1720530445448,0.55,3072.2,3071.8,0.005]
[1720530446312,0.55,3072.2,3070.6,0.005]
[1720530446313,3.433,3071.8,3070.6,0.005]
[1720530446531,4.03956384,3071.7,3070.6,0.005]
[1720530446738,0.60656384,3071.7,3070.6,0.005]
[1720530446954,0.05656384,3071.7,3070.8,3.25646]
[1720530447171,0.05656384,3071.7,3070.6,0.07011669]
[1720530447172,0.05656384,3071.7,3071.0,3.25618]
[1720530447312,0.05656384,3071.7,3071.0,3.32134235]
[1720530447509,0.05656384,3071.7,3071.3,3.25587]
[1720530447915,0.05656384,3071.7,3071.4,3.25583]
[1720530448107,0.05656384,3071.7,3071.6,3.25563]
[1720530448321,0.05656384,3071.7,3071.6,3.32072071]
[1720530448519,1e-08,3071.7,3071.6,2.35148632]
[1720530448722,1e-08,3071.7,3071.6,5.60711632]
[1720530448931,1e-08,3071.7,3071.6,8.60711632]
[1720530449149,1e-08,3071.7,3071.6,5.2864]
[1720530449355,1e-08,3071.7,3071.5,3.0]
[1720530449541,1e-08,3071.7,3071.3,3.667]
[1720530449720,1e-08,3071.7,3071.4,3.0]
[1720530450136,1e-08,3071.7,3071.1,6.25615]
[1720530450718,1e-08,3071.7,3071.2,3.25604]
[1720530451013,1e-08,3071.7,3071.6,3.25563]
[1720530451238,1e-08,3071.7,3071.6,3.32071993]
[1720530451744,2.639184,3073.8,3072.3,3.25488]
[1720530451945,3.2128,3075.2,3072.9,3.25425]
[1720530451946,2.3433,3074.4,3072.9,3.25425]
[1720530452149,2.3433,3074.4,3073.0,0.0650646]
[1720530452449,2.3433,3075.5,3073.3,3.25375]
[1720530452746,2.3433,3075.5,3073.3,3.31880485]
[1720530452747,0.60103,3075.4,3073.3,3.31880485]
[1720530452946,0.93990489,3075.4,3073.4,3.25372]
[1720530453151,0.93990489,3075.4,3073.5,0.06505485]
[1720530453445,3.433,3075.3,3072.9,3.667]
[1720530453612,3.433,3075.3,3073.1,3.25402]
[1720530453807,2.89290489,3075.4,3073.1,3.25402]
[1720530453808,4.06559049,3075.2,3073.1,3.25402]
[1720530454047,4.06559049,3075.2,3073.0,6.31912079]
[1720530454250,4.06559049,3075.2,3073.0,3.0]
[1720530454411,1.953,3075.0,3073.0,3.0]
[1720530454618,3.433,3074.7,3072.5,3.667]
[1720530454811,3.433,3074.7,3072.7,3.25445]
[1720530455010,0.57128,3074.6,3073.1,3.25403]
[1720530455248,2.2798,3074.8,3072.6,3.25447]
[1720530455249,6.433,3074.7,3072.6,3.25447]
[1720530455458,6.433,3074.7,3072.7,3.0]
[1720530455668,5.8741,3074.4,3072.6,3.0]
[1720530455810,3.58741,3074.3,3072.3,3.25481]
[1720530456018,7.02041,3074.3,3072.1,6.92209]
[1720530456210,7.02041,3074.3,3072.3,3.25487]
[1720530456211,0.946151,3074.2,3072.3,3.25487]
[1720530456535,0.55,3074.1,3072.4,0.06508088]
[1720530457449,0.55,3074.1,3072.5,3.667]
[1720530457618,0.55,3074.1,3072.6,3.31956115]
[1720530457815,0.55,3074.1,3072.6,3.25449]
[1720530458111,0.55,3074.1,3072.1,6.92202]
[1720530458538,0.4929151,3074.0,3072.2,3.0]
[1720530458728,0.55,3073.9,3072.2,3.0]
[1720530459257,2.3806,3073.8,3072.2,3.0]
[1720530459546,0.55,3073.7,3072.2,3.0]
[1720530459754,0.59306,3073.6,3072.2,6.25499]
[1720530459910,0.55,3073.5,3072.2,3.0]
[1720530460121,0.55,3073.5,3072.1,3.667]
[1720530460523,0.55,3073.5,3071.7,3.667]
[1720530460726,0.55,3073.5,3071.8,3.2554]
[1720530461041,0.55,3073.5,3071.9,0.06509047]
[1720530461236,0.55,3073.5,3072.1,3.255]
[1720530461570,0.59306,3073.6,3072.4,3.2547]
[1720530461784,0.59306,3073.6,3072.2,3.3200571]
[1720530461928,0.59306,3073.6,3072.3,3.25484]
[1720530462275,0.59306,3073.6,3071.8,3.0]
[1720530462276,0.59306,3073.6,3072.4,0.06507713]
[1720530462587,0.359306,3073.5,3072.4,0.06507713]
[1720530463081,0.55,3073.4,3072.4,0.06507713]
[1720530463790,0.55,3073.4,3072.2,3.25498]
[1720530464073,0.55,3073.4,3071.9,3.25522]
[1720530464232,0.55,3073.4,3071.7,6.667]
[1720530464566,0.55,3073.4,3071.8,6.32041948]
[1720530464779,0.55,3073.4,3071.9,3.2553]
[1720530464926,0.55,3073.4,3071.9,3.32038943]
[1720530465124,0.55,3073.4,3071.8,3.0]
[1720530465377,0.55,3073.4,3071.8,6.25541]
[1720530465735,0.55,3073.4,3071.9,3.2553]
[1720530466081,0.55,3073.4,3072.0,0.06508895]
[1720530466243,0.55,3073.4,3072.1,3.25503]
[1720530467262,0.55,3073.4,3071.8,6.2554]
[1720530467263,2.3803,3073.3,3071.8,6.2554]
[1720530467431,0.55,3073.2,3071.8,6.2554]
[1720530467628,0.59303,3073.1,3071.8,6.2554]
[1720530467832,0.55,3073.0,3071.8,6.2554]
[1720530468032,0.55,3073.2,3071.8,6.2554]
[1720530468671,0.55,3073.2,3071.8,9.51074]
[1720530469371,0.55,3073.2,3071.8,3.0]
[1720530469871,0.55,3073.2,3071.8,6.25534]
[1720530470066,0.29303,3073.1,3071.9,6.5106]
[1720530470382,3.55,3073.2,3072.2,3.25499]
[1720530470544,3.55,3073.2,3072.3,3.31989295]
[1720530470545,3.0,3073.2,3072.3,3.31989295]
[1720530470730,0.359306,3073.5,3072.2,3.25493]
[1720530470930,0.359306,3073.5,3072.1,6.92209]
[1720530470931,5.3511,3073.8,3072.1,3.667]
[1720530471173,5.3511,3073.8,3072.1,6.9221]
[1720530471580,5.68967559,3073.8,3072.1,6.9221]
[1720530471732,5.3511,3073.8,3072.1,6.9221]
[1720530471932,0.55,3073.7,3072.1,6.9221]
[1720530472173,0.59011,3073.6,3072.1,6.9221]
[1720530472362,0.55,3073.5,3072.1,6.9221]